[Event "6e festival d'échecs d'Allauch"]
[Site "Allauch, France"]
[Date "2024.08.26"]
[Round "1.6"]
[White "Dorvaux-Valdieu, Teiva"]
[Black "Ben Salah, Yacob"]
[Result "1-0"]
[TimeControl "1 h 30 min (+30s/coup)"]
[WhiteElo "1679"]
[BlackElo "1413"]

1. d4 {[%clk 01:30:57]} d5 {[%clk 01:30:53]} {[%emt 00:00:08]} 2. Nf3 {[%clk
01:31:18]} {[%emt 00:00:09]} Nc6 {[%clk 01:30:56]} {[%emt 00:00:27]} 3. e3
{[%clk 01:31:39]} {[%emt 00:00:10]} e6 {[%clk 01:31:01]} {[%emt 00:00:25]} 4.
b3 {[%clk 01:31:03]} {[%emt 00:01:06]} Nf6 {[%clk 01:31:12]} {[%emt 00:00:20]}
5. Bb2 {[%clk 01:29:07]} {[%emt 00:02:25]} Ne4 {[%clk 01:26:18]} {[%emt
00:05:24]} 6. a3 {[%clk 01:26:32]} {[%emt 00:03:05]} b6 {[%emt 00:02:04]} 7.
Bd3 {[%emt 00:01:13]} f5 {[%clk 01:22:51]} {[%emt 00:00:40]} 8. Bb5 {[%clk
01:25:27]} {[%emt 00:01:35]} Bb7 {[%clk 01:22:59]} {[%emt 00:00:22]} 9. Bxc6+
{[%clk 01:25:42]} {[%emt 00:00:14]} Bxc6 {[%clk 01:23:21]} {[%emt 00:00:07]} 10.
Ne5 {[%clk 01:26:02]} {[%emt 00:00:10]} Qd6 {[%clk 01:22:06]} {[%emt 00:01:45]}
11. Qh5+ {[%clk 01:28:00]} {[%emt 00:01:42]} Ke7 {[%clk 01:21:38]} {[%emt
00:02:21]} 12. a4 {[%clk 01:23:29]} {[%emt 00:05:01]} Be8 {[%emt 00:00:36]} 13.
Qh4+ {[%emt 00:00:47]} Nf6 {[%clk 01:19:45]} {[%emt 00:01:00]} 14. Ba3 {[%clk
01:21:03]} {[%emt 00:02:55]} c5 {[%clk 01:19:36]} {[%emt 00:00:39]} 15. O-O
{[%clk 00:57:43]} {[%emt 00:23:51]} Kd8 {[%clk 01:18:37]} {[%emt 00:01:29]} 16.
c4 {[%clk 00:47:01]} {[%emt 00:11:12]} Qc7 {[%clk 01:17:58]} {[%emt 00:01:08]}
17. cxd5 {[%clk 00:39:58]} {[%emt 00:07:34]} exd5 {[%clk 01:17:20]} {[%emt
00:01:08]} 18. Nc3 {[%clk 00:31:43]} {[%emt 00:08:44]} cxd4 {[%emt 00:02:26]}
19. Qxd4 {[%emt 00:00:31]} Bxa3 {[%clk 01:13:49]} {[%emt 00:01:04]} 20. Rxa3
{[%clk 00:31:34]} {[%emt 00:00:40]} Qd6 {[%clk 01:12:23]} {[%emt 00:01:57]} 21.
Ra2 {[%clk 00:30:49]} {[%emt 00:01:01]} Rc8 {[%emt 00:01:12]} 22. Rd1 {[%emt
00:00:48]} b5 {[%clk 01:10:17]} {[%emt 00:00:49]} 23. axb5 {[%clk 00:28:41]}
{[%emt 00:02:39]} Ng4 {[%emt 00:08:17]} 24. Nxg4 {[%clk 00:25:39]} {[%emt
00:02:32]} fxg4 {[%clk 01:03:36]} {[%emt 00:00:23]} 25. Rxa7 {[%clk 00:24:48]}
Bh5 {[%clk 01:02:52]} {[%emt 00:02:35]} 26. Qxd5 {[%clk 00:24:51]} {[%emt
00:00:27]} Qxd5 {[%clk 01:01:46]} {[%emt 00:01:36]} 27. Rxd5+ {[%clk 00:25:12]}
{[%emt 00:00:10]} Ke8 {[%clk 01:01:26]} {[%emt 00:00:49]} 28. Rxh5 {[%clk
00:25:19]} {[%emt 00:00:23]} Rxc3 {[%clk 01:01:27]} {[%emt 00:00:29]} 29. h3
{[%clk 00:25:33]} {[%emt 00:00:17]} Rf8 {[%clk 01:01:17]} {[%emt 00:00:39]} 30.
Re5+ {[%emt 00:00:26]} Kd8 {[%emt 00:00:58]} 31. Ra8+ {[%emt 00:00:33]} Rc8
{[%clk 00:59:20]} {[%emt 00:00:54]} 32. Rxc8+ {[%clk 00:25:19]} {[%emt
00:00:50]} Kxc8 {[%clk 00:59:27]} {[%emt 00:00:23]} 33. hxg4 {[%clk 00:25:35]}
{[%emt 00:00:14]} Rd8 {[%clk 00:58:41]} {[%emt 00:01:16]} 34. Re7 {[%clk
00:25:05]} {[%emt 00:01:00]} Rd3 {[%clk 00:56:53]} {[%emt 00:02:17]} 35. Rxg7
{[%clk 00:25:11]} {[%emt 00:00:26]} Rxb3 {[%clk 00:55:47]} {[%emt 00:01:36]} 36.
Rxh7 {[%clk 00:25:31]} {[%emt 00:00:10]} Rxb5 {[%clk 00:55:08]} {[%emt
00:01:09]} 37. f4 {[%clk 00:25:32]} {[%emt 00:00:28]} Rb3 {[%clk 00:54:51]}
{[%emt 00:00:47]} 38. Kf2 {[%clk 00:25:50]} {[%emt 00:00:12]} Rb2+ {[%clk
00:54:13]} {[%emt 00:01:08]} 39. Kf3 {[%clk 00:26:12]} {[%emt 00:00:08]} Rd2
{[%clk 00:53:00]} {[%emt 00:01:43]} 40. g5 {[%clk 00:26:18]} {[%emt 00:00:24]}
Rd5 {[%emt 00:01:28]} 41. g6 {[%emt 00:00:19]} Rd8 {[%clk 00:50:28]} {[%emt
00:01:15]} 42. g7 {[%clk 00:26:36]} {[%emt 00:00:12]} Re8 {[%clk 00:49:58]}
{[%emt 00:00:57]} 43. Rh8 {[%clk 00:26:57]} {[%emt 00:00:12]} Rxh8 {[%clk
00:48:43]} {[%emt 00:00:28]} 44. gxh8=Q+ {[%clk 00:26:57]} 1-0

[Event "6e festival d'échecs d'Allauch"]
[Site "Allauch, France"]
[Date "2024.08.26"]
[Round "1.7"]
[White "Minde, Heloise"]
[Black "Siguret, William"]
[Result "0-1"]
[TimeControl "1 h 30 min (+30s/coup)"]
[WhiteElo "1412"]
[BlackElo "1671"]

1. e4 {[%clk 01:30:58]} d5 {[%clk 01:30:31]} {[%emt 00:00:29]} 2. e5 {[%clk
01:31:05]} {[%emt 00:00:26]} c5 {[%clk 01:30:51]} {[%emt 00:00:09]} 3. Nf3
{[%clk 01:30:55]} {[%emt 00:00:40]} Bg4 {[%clk 01:31:02]} {[%emt 00:00:18]} 4.
c3 {[%clk 01:30:42]} {[%emt 00:00:43]} Qa5 {[%clk 01:30:17]} {[%emt 00:01:17]}
5. Be2 {[%clk 01:29:58]} {[%emt 00:01:13]} Nd7 {[%clk 01:30:03]} {[%emt
00:00:44]} 6. O-O {[%clk 01:28:31]} {[%emt 00:01:56]} e6 {[%clk 01:29:51]}
{[%emt 00:00:42]} 7. d4 {[%clk 01:28:09]} {[%emt 00:00:51]} Ne7 {[%clk
01:30:01]} {[%emt 00:00:21]} 8. Be3 {[%clk 01:26:49]} {[%emt 00:01:49]} Nf5
{[%clk 01:29:14]} {[%emt 00:01:18]} 9. Nbd2 {[%clk 01:24:28]} {[%emt 00:02:51]}
Be7 {[%clk 01:25:35]} {[%emt 00:04:09]} 10. Qc2 {[%clk 01:21:36]} {[%emt
00:03:21]} Rc8 {[%clk 01:24:37]} {[%emt 00:01:28]} 11. Rfe1 {[%clk 01:19:08]}
{[%emt 00:02:58]} cxd4 {[%clk 01:20:35]} {[%emt 00:04:33]} 12. Bxd4 {[%clk
01:17:46]} {[%emt 00:01:51]} Nxd4 {[%clk 01:17:03]} {[%emt 00:04:02]} 13. Nxd4
{[%clk 01:17:52]} {[%emt 00:00:23]} Nxe5 {[%clk 01:16:41]} {[%emt 00:00:54]} 14.
Bb5+ {[%clk 01:12:47]} {[%emt 00:05:32]} Nc6 {[%clk 01:14:43]} {[%emt
00:02:30]} 15. N2b3 {[%clk 01:12:57]} {[%emt 00:00:18]} Qc7 {[%clk 01:12:41]}
{[%emt 00:02:33]} 16. Rac1 {[%clk 01:09:47]} {[%emt 00:03:40]} O-O {[%clk
01:12:09]} {[%emt 00:01:02]} 17. a4 {[%clk 01:09:55]} {[%emt 00:00:23]} Ne5
{[%clk 01:08:44]} {[%emt 00:03:55]} 18. Nd2 {[%clk 01:08:04]} {[%emt 00:02:21]}
Bh5 {[%clk 00:59:40]} {[%emt 00:09:34]} 19. b3 {[%clk 01:05:28]} {[%emt
00:03:01]} Bg5 {[%clk 00:54:52]} {[%emt 00:05:22]} 20. Qb2 {[%clk 01:01:41]}
{[%emt 00:04:17]} Bg6 {[%clk 00:52:22]} {[%emt 00:03:00]} 21. g3 {[%clk
00:56:40]} {[%emt 00:05:32]} a6 {[%clk 00:49:32]} {[%emt 00:03:19]} 22. f4
{[%clk 00:54:23]} {[%emt 00:02:47]} axb5 {[%clk 00:49:22]} {[%emt 00:00:42]} 23.
Nxb5 {[%clk 00:54:30]} {[%emt 00:00:22]} Qc5+ {[%clk 00:47:59]} {[%emt
00:01:51]} 24. Kg2 {[%clk 00:52:53]} {[%emt 00:02:08]} Nd3 {[%clk 00:47:48]}
{[%emt 00:00:40]} 25. b4 {[%clk 00:52:28]} {[%emt 00:00:57]} Qf2+ {[%clk
00:47:52]} {[%emt 00:00:26]} 26. Kh3 {[%clk 00:52:43]} {[%emt 00:00:14]} Bf5+
{[%clk 00:47:25]} {[%emt 00:00:56]} 27. g4 {[%clk 00:53:03]} {[%emt 00:00:10]}
Nxf4# {[%clk 00:47:34]} {[%emt 00:00:20]} 0-1

[Event "6e festival d'échecs d'Allauch"]
[Site "Allauch, France"]
[Date "2024.08.26"]
[Round "1.8"]
[White "Madi, Chahinez"]
[Black "Mouly, Maxime"]
[Result "1-0"]
[TimeControl "1 h 30 min (+30s/coup)"]
[WhiteElo "1668"]
[BlackElo "1411"]

1. e4 {[%clk 01:30:53]} {[%emt 00:00:06]} e5 {[%clk 01:30:51]} {[%emt
00:00:10]} 2. Nf3 {[%clk 01:30:47]} {[%emt 00:00:36]} Nc6 {[%clk 01:30:38]}
{[%emt 00:00:43]} 3. Bb5 {[%clk 01:30:58]} {[%emt 00:00:19]} a6 {[%clk
01:30:50]} {[%emt 00:00:18]} 4. Ba4 {[%clk 01:31:19]} {[%emt 00:00:10]} Nf6
{[%clk 01:31:12]} {[%emt 00:00:07]} 5. O-O {[%clk 01:31:08]} {[%emt 00:00:42]}
Bc5 {[%clk 01:31:31]} {[%emt 00:00:10]} 6. d3 {[%clk 01:25:29]} {[%emt
00:06:08]} b5 {[%clk 01:29:38]} {[%emt 00:02:23]} 7. Bb3 {[%clk 01:25:25]}
{[%emt 00:00:34]} d6 {[%clk 01:29:44]} {[%emt 00:00:24]} 8. c3 {[%clk
01:24:24]} {[%emt 00:01:31]} Bg4 {[%clk 01:26:43]} {[%emt 00:03:31]} 9. Re1
{[%clk 01:19:54]} {[%emt 00:05:00]} Bxf3 {[%clk 01:22:21]} {[%emt 00:04:53]} 10.
Qxf3 {[%clk 01:20:00]} {[%emt 00:00:24]} Na5 {[%clk 01:22:06]} {[%emt
00:00:43]} 11. Bc2 {[%clk 01:19:43]} {[%emt 00:00:49]} h6 {[%clk 01:19:00]}
{[%emt 00:03:36]} 12. b4 {[%clk 01:19:45]} {[%emt 00:00:27]} Bxb4 {[%clk
01:18:49]} {[%emt 00:00:41]} 13. cxb4 {[%clk 01:20:06]} {[%emt 00:00:09]} Nc6
{[%clk 01:19:07]} {[%emt 00:00:12]} 14. a3 {[%clk 01:20:22]} {[%emt 00:00:13]}
a5 {[%clk 01:19:13]} {[%emt 00:00:25]} 15. bxa5 {[%clk 01:19:47]} {[%emt
00:01:06]} Nd4 {[%clk 01:18:30]} {[%emt 00:01:14]} 16. Qd1 {[%clk 01:19:19]}
{[%emt 00:00:57]} Rxa5 {[%clk 01:18:40]} {[%emt 00:00:20]} 17. Bb2 {[%emt
00:00:22]} Nxc2 18. Qxc2 {[%clk 01:19:26]} Qb8 {[%clk 01:10:29]} {[%emt
00:09:23]} 19. Qc6+ {[%clk 01:16:30]} {[%emt 00:03:44]} Ke7 {[%emt 00:00:20]}
20. d4 {[%clk 01:16:21]} {[%emt 00:00:38]} Qa7 {[%clk 01:09:16]} {[%emt
00:01:50]} 21. dxe5 {[%clk 01:16:13]} {[%emt 00:00:42]} Ng4 {[%clk 01:09:01]}
{[%emt 00:00:45]} 22. exd6+ {[%emt 00:00:55]} cxd6 {[%emt 00:00:31]} 23. Qc2
{[%clk 01:14:51]} {[%emt 00:00:24]} b4 {[%clk 01:07:58]} {[%emt 00:01:36]} 24.
Qe2 {[%clk 01:14:59]} {[%emt 00:00:21]} h5 {[%clk 01:07:17]} {[%emt 00:01:13]}
25. h3 {[%clk 01:15:09]} {[%emt 00:00:19]} Ne5 {[%clk 01:06:40]} {[%emt
00:01:03]} 26. Bxe5 {[%clk 01:14:45]} {[%emt 00:00:56]} dxe5 {[%clk 01:07:02]}
{[%emt 00:00:09]} 27. Qe3 {[%clk 01:14:08]} {[%emt 00:01:05]} Rb8 {[%clk
01:05:28]} {[%emt 00:02:06]} 28. Qxa7+ {[%clk 01:11:41]} {[%emt 00:02:56]} Rxa7
{[%clk 01:05:31]} {[%emt 00:00:27]} 29. Nd2 {[%clk 01:09:37]} {[%emt 00:02:34]}
bxa3 {[%clk 01:03:15]} {[%emt 00:02:46]} 30. Nc4 {[%clk 01:09:50]} {[%emt
00:00:17]} a2 {[%clk 01:01:45]} {[%emt 00:02:00]} 31. Nxe5 {[%clk 01:08:44]}
{[%emt 00:01:36]} Rb6 {[%clk 01:01:02]} {[%emt 00:01:12]} 32. Kh2 {[%clk
01:07:09]} {[%emt 00:02:07]} Kd6 {[%clk 00:58:51]} {[%emt 00:02:41]} 33. Nc4+
{[%clk 01:07:27]} {[%emt 00:00:12]} Kc5 {[%clk 00:58:53]} {[%emt 00:00:28]} 34.
Nxb6 {[%clk 01:07:14]} {[%emt 00:00:43]} Kxb6 {[%clk 00:59:03]} {[%emt
00:00:19]} 35. Re2 {[%clk 01:07:39]} {[%emt 00:00:05]} Ra5 {[%clk 00:58:41]}
{[%emt 00:00:52]} 36. Raxa2 {[%clk 01:07:55]} {[%emt 00:00:14]} Rg5 {[%clk
00:59:01]} {[%emt 00:00:09]} 37. Rec2 {[%clk 01:07:47]} {[%emt 00:00:39]} Kb5
{[%emt 00:00:43]} 38. Rab2+ {[%clk 01:08:07]} {[%emt 00:00:08]} Ka4 {[%clk
00:59:12]} {[%emt 00:00:08]} 39. Rc8 {[%clk 01:08:25]} {[%emt 00:00:12]} Ka3
{[%clk 00:58:55]} {[%emt 00:00:47]} 40. Rb7 {[%clk 01:08:46]} {[%emt 00:00:09]}
Ka4 {[%clk 00:59:01]} {[%emt 00:00:24]} 41. Ra8+ {[%clk 01:08:40]} {[%emt
00:00:35]} Ra5 {[%clk 00:59:23]} {[%emt 00:00:08]} 42. Rxa5+ {[%clk 01:09:03]}
{[%emt 00:00:09]} Kxa5 {[%clk 00:59:42]} {[%emt 00:00:11]} 43. Rxf7 {[%clk
01:09:21]} {[%emt 00:00:11]} h4 {[%clk 00:59:55]} {[%emt 00:00:17]} 44. e5
{[%clk 01:09:45]} {[%emt 00:00:05]} g5 {[%clk 01:00:17]} {[%emt 00:00:09]} 45.
e6 {[%clk 01:10:10]} {[%emt 00:00:05]} g4 {[%clk 01:00:20]} {[%emt 00:00:28]}
46. e7 {[%clk 01:10:33]} {[%emt 00:00:07]} g3+ {[%clk 01:00:28]} {[%emt
00:00:22]} 47. fxg3 {[%clk 01:10:50]} {[%emt 00:00:14]} hxg3+ {[%clk 01:00:18]}
{[%emt 00:00:40]} 48. Kxg3 {[%clk 01:11:14]} {[%emt 00:00:06]} Kb6 {[%clk
01:00:36]} {[%emt 00:00:12]} 49. e8=Q {[%clk 01:11:37]} {[%emt 00:00:08]} Kc5
{[%clk 01:00:46]} {[%emt 00:00:19]} 50. Rd7 {[%clk 01:11:56]} {[%emt 00:00:10]}
1-0

[Event "6e festival d'échecs d'Allauch"]
[Site "Allauch, France"]
[Date "2024.08.27"]
[Round "2.1"]
[White "Degraeve, Jean-Marc"]
[Black "Cauture, Baptiste"]
[Result "1-0"]
[TimeControl "1 h 30 min (+30s/coup)"]
[WhiteElo "2487"]
[BlackElo "1900"]

1. e4 c5 2. Nf3 {[%clk 01:30:30]} d6 {[%emt 00:56:19]} 3. c3 g6 {[%clk
01:30:04]} {[%emt 00:00:38]} 4. d4 {[%clk 01:28:34]} {[%emt 00:00:16]} cxd4
{[%clk 01:30:24]} {[%emt 00:00:11]} 5. cxd4 {[%clk 01:28:58]} {[%emt 00:00:06]}
d5 {[%clk 01:30:36]} {[%emt 00:00:18]} 6. e5 {[%clk 01:27:11]} {[%emt
00:02:16]} Nc6 {[%clk 01:29:57]} {[%emt 00:01:09]} 7. Bb5 {[%clk 01:27:17]}
{[%emt 00:00:24]} Bg7 {[%clk 01:26:46]} {[%emt 00:03:41]} 8. O-O {[%clk
01:27:39]} {[%emt 00:00:07]} Nh6 {[%clk 01:26:11]} {[%emt 00:01:05]} 9. h3
{[%clk 01:27:07]} {[%emt 00:01:03]} O-O {[%clk 01:25:54]} {[%emt 00:00:48]} 10.
Bxc6 {[%clk 01:25:07]} {[%emt 00:02:30]} bxc6 {[%clk 01:25:36]} {[%emt
00:00:48]} 11. Nc3 {[%clk 01:25:33]} {[%emt 00:00:04]} Nf5 {[%clk 01:15:48]}
{[%emt 00:10:18]} 12. Re1 {[%clk 01:25:00]} {[%emt 00:01:03]} f6 {[%clk
01:12:53]} {[%emt 00:03:25]} 13. Bf4 {[%clk 01:24:47]} {[%emt 00:00:43]} Bd7
{[%clk 00:59:50]} {[%emt 00:13:32]} 14. Na4 {[%clk 01:24:37]} {[%emt 00:00:41]}
fxe5 {[%clk 00:54:15]} {[%emt 00:06:05]} 15. Bxe5 {[%clk 01:24:45]} {[%emt
00:00:21]} Nd6 {[%clk 00:54:15]} {[%emt 00:00:31]} 16. Bxg7 {[%clk 01:24:53]}
{[%emt 00:00:21]} Kxg7 {[%clk 00:54:40]} {[%emt 00:00:06]} 17. Nc5 {[%clk
01:25:16]} {[%emt 00:00:07]} Rf6 {[%clk 00:47:05]} {[%emt 00:08:05]} 18. Qe2
{[%clk 01:24:51]} {[%emt 00:00:55]} e6 {[%clk 00:44:15]} {[%emt 00:03:20]} 19.
Ne5 {[%clk 01:25:01]} {[%emt 00:00:19]} Be8 {[%clk 00:44:16]} {[%emt 00:00:29]}
20. Ng4 {[%clk 01:25:22]} {[%emt 00:00:09]} Bf7 {[%clk 00:43:28]} {[%emt
00:01:17]} 21. Nxf6 {[%clk 01:24:31]} {[%emt 00:01:22]} Qxf6 {[%clk 00:43:15]}
{[%emt 00:00:44]} 22. Nxe6+ {[%clk 01:24:35]} {[%emt 00:00:25]} Bxe6 {[%clk
00:43:29]} {[%emt 00:00:16]} 23. Qxe6 {[%clk 01:25:02]} {[%emt 00:00:03]} Rf8
{[%clk 00:43:47]} {[%emt 00:00:13]} 24. Qxf6+ {[%clk 01:25:22]} {[%emt
00:00:10]} Kxf6 {[%clk 00:43:11]} {[%emt 00:01:05]} 25. Re3 {[%clk 01:21:35]}
{[%emt 00:04:17]} Nf5 {[%clk 00:41:41]} {[%emt 00:02:01]} 26. Rf3 {[%clk
01:21:58]} {[%emt 00:00:06]} Kg7 {[%clk 00:42:03]} {[%emt 00:00:06]} 27. g4
{[%clk 01:22:16]} {[%emt 00:00:15]} Nxd4 {[%clk 00:42:17]} {[%emt 00:00:16]} 28.
Rxf8 {[%clk 01:22:41]} {[%emt 00:00:06]} Kxf8 {[%clk 00:42:38]} {[%emt
00:00:08]} 29. Rd1 {[%clk 01:23:00]} {[%emt 00:00:10]} Ne6 {[%clk 00:42:17]}
{[%emt 00:00:51]} 30. Kg2 {[%clk 01:20:33]} {[%emt 00:02:56]} g5 {[%clk
00:41:33]} {[%emt 00:01:15]} 31. Kg3 {[%clk 01:20:55]} {[%emt 00:00:08]} Ke7
{[%clk 00:41:58]} {[%emt 00:00:05]} 32. h4 {[%clk 01:21:17]} {[%emt 00:00:07]}
h6 {[%clk 00:42:16]} {[%emt 00:00:12]} 33. hxg5 {[%clk 01:21:40]} {[%emt
00:00:08]} hxg5 {[%clk 00:42:39]} {[%emt 00:00:07]} 34. Rh1 {[%clk 01:21:56]}
{[%emt 00:00:12]} Kd6 {[%clk 00:42:58]} {[%emt 00:00:11]} 35. Rh7 {[%clk
01:22:20]} {[%emt 00:00:08]} a6 {[%clk 00:42:21]} {[%emt 00:01:07]} 36. Ra7
{[%clk 01:22:39]} {[%emt 00:00:10]} d4 {[%clk 00:40:22]} {[%emt 00:02:30]} 37.
Rxa6 {[%clk 01:22:40]} {[%emt 00:00:29]} Kd5 {[%clk 00:40:44]} {[%emt
00:00:07]} 38. Kf3 {[%clk 01:22:48]} {[%emt 00:00:22]} Nf4 {[%clk 00:34:30]}
{[%emt 00:06:45]} 39. Ra5+ {[%clk 01:22:52]} {[%emt 00:00:27]} c5 {[%clk
00:34:51]} {[%emt 00:00:09]} 40. b4 {[%clk 01:23:03]} {[%emt 00:00:19]} d3
{[%clk 00:34:17]} {[%emt 00:01:04]} 41. Ke3 {[%clk 01:22:29]} {[%emt 00:01:04]}
Kc4 {[%clk 00:34:10]} {[%emt 00:00:36]} 42. Rxc5+ {[%clk 01:22:51]} {[%emt
00:00:08]} Kxb4 {[%clk 00:34:36]} {[%emt 00:00:05]} 43. Rxg5 {[%clk 01:23:12]}
{[%emt 00:00:09]} Kc3 {[%clk 00:34:53]} {[%emt 00:00:13]} 44. Kxf4 {[%clk
01:23:35]} {[%emt 00:00:07]} d2 {[%clk 00:35:20]} {[%emt 00:00:03]} 45. Rd5
{[%clk 01:23:59]} {[%emt 00:00:05]} 1-0

[Event "6e festival d'échecs d'Allauch"]
[Site "Allauch, France"]
[Date "2024.08.27"]
[Round "2.2"]
[White "Toth, Kincso"]
[Black "Degraeve, Remy"]
[Result "0-1"]
[TimeControl "1 h 30 min (+30s/coup)"]
[WhiteElo "1912"]
[BlackElo "2402"]

1. e4 {[%clk 01:30:55]} {[%emt 00:00:03]} e5 {[%clk 01:29:39]} {[%emt
00:01:21]} 2. Nf3 {[%clk 01:31:11]} {[%emt 00:00:14]} Nc6 {[%clk 01:30:04]}
{[%emt 00:00:04]} 3. Nc3 {[%clk 01:31:30]} {[%emt 00:00:13]} Nf6 {[%clk
01:30:28]} {[%emt 00:00:05]} 4. d4 {[%clk 01:31:36]} {[%emt 00:00:24]} exd4
{[%clk 01:30:50]} {[%emt 00:00:08]} 5. Nxd4 {[%clk 01:31:44]} {[%emt 00:00:23]}
Bb4 {[%clk 01:31:14]} {[%emt 00:00:06]} 6. Nxc6 {[%clk 01:31:40]} {[%emt
00:00:34]} bxc6 {[%clk 01:31:37]} {[%emt 00:00:07]} 7. Bd3 {[%clk 01:31:47]}
{[%emt 00:00:23]} O-O {[%clk 01:31:59]} {[%emt 00:00:07]} 8. O-O {[%clk
01:31:01]} {[%emt 00:01:16]} Re8 {[%clk 01:32:24]} {[%emt 00:00:06]} 9. Re1
{[%clk 01:24:23]} {[%emt 00:07:09]} d6 {[%clk 01:32:22]} {[%emt 00:00:31]} 10.
Bd2 {[%clk 01:21:52]} {[%emt 00:03:01]} a5 {[%clk 01:32:12]} {[%emt 00:00:39]}
11. f3 {[%clk 01:13:29]} {[%emt 00:08:54]} Nd7 {[%clk 01:27:53]} {[%emt
00:04:49]} 12. Ne2 {[%clk 01:09:35]} {[%emt 00:04:25]} Ne5 {[%clk 01:26:09]}
{[%emt 00:02:13]} 13. Bc3 {[%clk 01:03:58]} {[%emt 00:06:07]} Qf6 {[%clk
01:20:53]} {[%emt 00:05:46]} 14. Bxb4 {[%clk 00:57:56]} {[%emt 00:06:32]} axb4
{[%clk 01:21:15]} {[%emt 00:00:08]} 15. c3 {[%clk 00:46:35]} {[%emt 00:11:51]}
c5 {[%clk 01:18:30]} {[%emt 00:03:15]} 16. Ng3 {[%clk 00:42:11]} {[%emt
00:04:55]} bxc3 {[%clk 01:17:37]} {[%emt 00:01:21]} 17. bxc3 {[%clk 00:41:21]}
{[%emt 00:01:21]} Ra3 {[%clk 01:17:58]} {[%emt 00:00:08]} 18. Be2 {[%clk
00:34:41]} {[%emt 00:07:09]} Rxc3 {[%clk 01:16:25]} {[%emt 00:02:04]} 19. a4
{[%clk 00:31:45]} {[%emt 00:03:27]} c4 {[%clk 01:16:27]} {[%emt 00:00:27]} 20.
a5 {[%clk 00:31:01]} {[%emt 00:01:13]} Nd3 {[%clk 01:12:28]} {[%emt 00:04:29]}
21. Bxd3 {[%clk 00:28:06]} {[%emt 00:03:26]} cxd3 {[%clk 01:12:54]} {[%emt
00:00:04]} 22. Qa4 {[%clk 00:26:50]} {[%emt 00:01:46]} Kf8 {[%clk 01:05:32]}
{[%emt 00:07:51]} 23. a6 {[%clk 00:24:19]} {[%emt 00:03:00]} Rc2 {[%clk
01:05:32]} {[%emt 00:00:30]} 24. Nf1 {[%clk 00:19:10]} {[%emt 00:05:39]} Qh4
{[%clk 00:53:10]} {[%emt 00:12:53]} 25. Qd4 {[%clk 00:15:35]} {[%emt 00:04:04]}
Bxa6 {[%clk 00:53:14]} {[%emt 00:00:26]} 26. Ng3 {[%clk 00:13:22]} {[%emt
00:02:43]} Bb5 {[%clk 00:52:14]} {[%emt 00:01:31]} 27. Qxg7+ {[%clk 00:09:08]}
{[%emt 00:04:45]} Kxg7 {[%clk 00:52:42]} {[%emt 00:00:02]} 28. Nf5+ {[%clk
00:09:30]} {[%emt 00:00:08]} Kf6 {[%clk 00:53:10]} {[%emt 00:00:02]} 29. Nxh4
{[%clk 00:09:53]} {[%emt 00:00:07]} d2 {[%clk 00:53:37]} {[%emt 00:00:01]} 30.
Reb1 {[%clk 00:08:57]} {[%emt 00:01:27]} Ra8 {[%clk 00:53:45]} {[%emt
00:00:22]} 0-1